[Event "Titled Tuesday Blitz January 03 Late 2023"]
[White "Khripachenko, Alexander"]
[Black "Zierk, Steven"]
[WhiteFideId "54184975"]
[BlackFideId "2034255"]
[WhiteElo "2110"]
[BlackElo "2488"]
[Result "0-1"]
[Round "05"]
[TimeControl "180+2"]
[Date "2023.01.03"]
[WhiteClock "0:00:33"]
[BlackClock "0:00:27"]

1. e4 {[%clk 0:02:59]}  e6 {[%clk 0:02:59]} 2. d4 {[%clk 0:02:59]}  d5 {[%clk 0:03:00]} 3. Nd2 {[%clk 0:03:00]}  c5 {[%clk 0:03:00]} 4. Ngf3 {[%clk 0:03:00]}  cxd4 {[%clk 0:03:00]} 5. exd5 {[%clk 0:03:01]}  Qxd5 {[%clk 0:02:59]} 6. Bc4 {[%clk 0:03:01]}  Qd7 {[%clk 0:02:59]} 7. O-O {[%clk 0:03:02]}  Nc6 {[%clk 0:03:00]} 8. Nb3 {[%clk 0:03:02]}  Nf6 {[%clk 0:03:00]} 9. Nbxd4 {[%clk 0:03:03]}  Nxd4 {[%clk 0:03:01]} 10. Nxd4 {[%clk 0:03:04]}  a6 {[%clk 0:03:00]} 11. c3 {[%clk 0:03:04]}  Bc5 {[%clk 0:02:59]} 12. Be3 {[%clk 0:03:03]}  O-O {[%clk 0:02:54]} 13. Re1 {[%clk 0:03:02]}  b6 {[%clk 0:02:53]} 14. Qf3 {[%clk 0:02:56]}  Bb7 {[%clk 0:02:51]} 15. Qh3 {[%clk 0:02:57]}  e5 {[%clk 0:02:27]} 16. Ne6 {[%clk 0:01:28]}  Bxe3 {[%clk 0:02:08]} 17. Nxf8 {[%clk 0:01:18]}  Qxh3 {[%clk 0:02:03]} 18. gxh3 {[%clk 0:01:18]}  Bf4 {[%clk 0:01:58]} 19. Ne6 {[%clk 0:01:11]}  fxe6 {[%clk 0:01:57]} 20. Bxe6+ {[%clk 0:01:12]}  Kf8 {[%clk 0:01:58]} 21. Rad1 {[%clk 0:01:12]}  Ke7 {[%clk 0:01:54]} 22. Bc4 {[%clk 0:01:12]}  Rc8 {[%clk 0:01:35]} 23. Be2 {[%clk 0:01:11]}  e4 {[%clk 0:01:32]} 24. Rd4 {[%clk 0:01:08]}  Rc5 {[%clk 0:01:29]} 25. h4 {[%clk 0:01:04]}  g5 {[%clk 0:01:23]} 26. h5 {[%clk 0:01:04]}  g4 {[%clk 0:01:23]} 27. Rb4 {[%clk 0:01:04]}  b5 {[%clk 0:01:21]} 28. a4 {[%clk 0:01:04]}  Rxh5 {[%clk 0:01:20]} 29. axb5 {[%clk 0:01:04]}  Bxh2+ {[%clk 0:01:20]} 30. Kf1 {[%clk 0:01:04]}  a5 {[%clk 0:01:05]} 31. Rc4 {[%clk 0:01:02]}  Bd6 {[%clk 0:00:54]} 32. Kg1 {[%clk 0:01:00]}  e3 {[%clk 0:00:49]} 33. Rc6 {[%clk 0:00:39]}  Bxc6 {[%clk 0:00:44]} 34. bxc6 {[%clk 0:00:40]}  exf2+ {[%clk 0:00:43]} 35. Kxf2 {[%clk 0:00:41]}  Rf5+ {[%clk 0:00:41]} 36. Kg2 {[%clk 0:00:41]}  Kd8 {[%clk 0:00:41]} 37. Rd1 {[%clk 0:00:40]}  Kc7 {[%clk 0:00:41]} 38. Rd4 {[%clk 0:00:40]}  h5 {[%clk 0:00:39]} 39. b4 {[%clk 0:00:34]}  Rd5 {[%clk 0:00:36]} 40. Rc4 {[%clk 0:00:34]}  a4 {[%clk 0:00:33]} 41. b5 {[%clk 0:00:34]}  Rxb5 {[%clk 0:00:30]} 42. Rxa4 {[%clk 0:00:34]}  Rb2 {[%clk 0:00:30]} 43. Kf1 {[%clk 0:00:33]}  Nd5 {[%clk 0:00:27]} 0-1


[Site "https://www.chess.com"]

[Event "Titled Tuesday Blitz January 03 Late 2023"]
[White "Zhigalko, Sergei"]
[Black "AidenRchess"]
[WhiteFideId "13502956"]
[WhiteElo "2572"]
[BlackElo "2398"]
[Result "1-0"]
[Round "05"]
[TimeControl "180+2"]
[Date "2023.01.03"]
[WhiteClock "0:02:03"]
[BlackClock "0:00:28"]

1. e4 {[%clk 0:03:00]}  c5 {[%clk 0:02:59]} 2. Nf3 {[%clk 0:02:59]}  d6 {[%clk 0:02:59]} 3. d4 {[%clk 0:02:59]}  cxd4 {[%clk 0:03:00]} 4. Qxd4 {[%clk 0:03:00]}  Nc6 {[%clk 0:02:53]} 5. Bb5 {[%clk 0:02:59]}  Bd7 {[%clk 0:02:49]} 6. Bxc6 {[%clk 0:03:00]}  Bxc6 {[%clk 0:02:50]} 7. Nc3 {[%clk 0:03:00]}  e6 {[%clk 0:02:48]} 8. Bg5 {[%clk 0:02:59]}  Nf6 {[%clk 0:02:45]} 9. O-O-O {[%clk 0:02:58]}  Be7 {[%clk 0:02:42]} 10. Rhe1 {[%clk 0:02:58]}  O-O {[%clk 0:02:38]} 11. Kb1 {[%clk 0:02:59]}  Qc7 {[%clk 0:02:37]} 12. Qd2 {[%clk 0:02:59]}  Rad8 {[%clk 0:02:36]} 13. Nd4 {[%clk 0:02:59]}  a6 {[%clk 0:02:35]} 14. f3 {[%clk 0:02:59]}  b5 {[%clk 0:02:35]} 15. g4 {[%clk 0:02:59]}  b4 {[%clk 0:02:34]} 16. Nce2 {[%clk 0:02:59]}  d5 {[%clk 0:02:31]} 17. e5 {[%clk 0:02:58]}  Rfe8 {[%clk 0:01:41]} 18. exf6 {[%clk 0:02:51]}  gxf6 {[%clk 0:01:42]} 19. Bh6 {[%clk 0:02:49]}  Bc5 {[%clk 0:01:41]} 20. Ng3 {[%clk 0:02:40]}  Ba4 {[%clk 0:01:31]} 21. b3 {[%clk 0:02:27]}  Bxd4 {[%clk 0:01:14]} 22. Qxd4 {[%clk 0:02:25]}  Rc8 {[%clk 0:01:06]} 23. Rc1 {[%clk 0:02:22]}  e5 {[%clk 0:01:05]} 24. Qxb4 {[%clk 0:02:21]}  Bc6 {[%clk 0:01:00]} 25. Nh5 {[%clk 0:02:20]}  Qd8 {[%clk 0:00:53]} 26. g5 {[%clk 0:02:16]}  fxg5 {[%clk 0:00:50]} 27. Bxg5 {[%clk 0:02:16]}  Qc7 {[%clk 0:00:44]} 28. Bf6 {[%clk 0:02:07]}  Qd6 {[%clk 0:00:28]} 29. Rg1+ {[%clk 0:02:05]}  Kf8 {[%clk 0:00:28]} 30. Qxd6+ {[%clk 0:02:05]}  Re7 {[%clk 0:00:29]} 31. Bxe7+ {[%clk 0:02:05]}  Ke8 {[%clk 0:00:28]} 32. Nf6# {[%clk 0:02:03]} 1-0


[Site "https://www.chess.com"]

[Event "Titled Tuesday Blitz January 03 Late 2023"]
[White "Deac, Bogdan-Daniel"]
[Black "Saric, Ibro"]
[WhiteFideId "1226380"]
[BlackFideId "14401290"]
[WhiteElo "2700"]
[BlackElo "2531"]
[Result "1-0"]
[Round "05"]
[TimeControl "180+2"]
[Date "2023.01.03"]
[WhiteClock "0:00:07"]
[BlackClock "0:00:03"]

1. b3 {[%clk 0:03:00]}  e5 {[%clk 0:02:55]} 2. Bb2 {[%clk 0:03:01]}  Nc6 {[%clk 0:02:55]} 3. Nf3 {[%clk 0:03:01]}  d6 {[%clk 0:02:52]} 4. c4 {[%clk 0:02:59]}  g6 {[%clk 0:02:49]} 5. g3 {[%clk 0:02:58]}  Bg7 {[%clk 0:02:49]} 6. Bg2 {[%clk 0:02:59]}  f5 {[%clk 0:02:48]} 7. O-O {[%clk 0:02:58]}  Nf6 {[%clk 0:02:48]} 8. d3 {[%clk 0:02:58]}  O-O {[%clk 0:02:47]} 9. Nc3 {[%clk 0:02:59]}  h6 {[%clk 0:02:46]} 10. a3 {[%clk 0:02:59]}  a5 {[%clk 0:02:45]} 11. e3 {[%clk 0:02:59]}  Be6 {[%clk 0:02:31]} 12. Qc2 {[%clk 0:02:58]}  Bf7 {[%clk 0:02:22]} 13. Nd2 {[%clk 0:02:58]}  Rb8 {[%clk 0:02:19]} 14. f4 {[%clk 0:02:54]}  exf4 {[%clk 0:02:09]} 15. gxf4 {[%clk 0:02:52]}  Ng4 {[%clk 0:02:09]} 16. Rae1 {[%clk 0:02:49]}  Re8 {[%clk 0:02:03]} 17. Nd1 {[%clk 0:02:47]}  Bxb2 {[%clk 0:01:49]} 18. Qxb2 {[%clk 0:02:48]}  d5 {[%clk 0:01:42]} 19. h3 {[%clk 0:02:34]}  Nf6 {[%clk 0:01:40]} 20. d4 {[%clk 0:02:32]}  Ne4 {[%clk 0:01:13]} 21. Nxe4 {[%clk 0:02:17]}  dxe4 {[%clk 0:01:14]} 22. Nc3 {[%clk 0:02:14]}  Ne7 {[%clk 0:00:57]} 23. h4 {[%clk 0:02:12]}  Kh7 {[%clk 0:00:54]} 24. Bh3 {[%clk 0:02:11]}  h5 {[%clk 0:00:52]} 25. Rd1 {[%clk 0:01:55]}  Ng8 {[%clk 0:00:52]} 26. Qf2 {[%clk 0:01:55]}  Nh6 {[%clk 0:00:48]} 27. d5 {[%clk 0:01:55]}  Qd6 {[%clk 0:00:46]} 28. Nb5 {[%clk 0:01:53]}  Qc5 {[%clk 0:00:45]} 29. Qd2 {[%clk 0:01:44]}  c6 {[%clk 0:00:43]} 30. b4 {[%clk 0:01:07]}  axb4 {[%clk 0:00:44]} 31. axb4 {[%clk 0:01:08]}  Qe7 {[%clk 0:00:44]} 32. Nd4 {[%clk 0:00:55]}  Qxh4 {[%clk 0:00:40]} 33. Kg2 {[%clk 0:00:47]}  cxd5 {[%clk 0:00:39]} 34. c5 {[%clk 0:00:48]}  Ra8 {[%clk 0:00:29]} 35. Ra1 {[%clk 0:00:45]}  Ng4 {[%clk 0:00:20]} 36. Rfc1 {[%clk 0:00:43]}  Qf6 {[%clk 0:00:14]} 37. b5 {[%clk 0:00:33]}  g5 {[%clk 0:00:12]} 38. Bxg4 {[%clk 0:00:32]}  fxg4 {[%clk 0:00:12]} 39. fxg5 {[%clk 0:00:23]}  Qxg5 {[%clk 0:00:13]} 40. Rxa8 {[%clk 0:00:22]}  Rxa8 {[%clk 0:00:12]} 41. Qf2 {[%clk 0:00:22]}  Bg6 {[%clk 0:00:11]} 42. c6 {[%clk 0:00:23]}  bxc6 {[%clk 0:00:11]} 43. bxc6 {[%clk 0:00:23]}  h4 {[%clk 0:00:11]} 44. c7 {[%clk 0:00:18]}  g3 {[%clk 0:00:11]} 45. Qf4 {[%clk 0:00:17]}  h3+ {[%clk 0:00:05]} 46. Kxh3 {[%clk 0:00:14]}  Qh5+ {[%clk 0:00:04]} 47. Qh4 {[%clk 0:00:07]}  Qxh4+ {[%clk 0:00:04]} 48. Kxh4 {[%clk 0:00:07]}  g2 {[%clk 0:00:05]} 49. Kg3 {[%clk 0:00:07]}  Kg7 {[%clk 0:00:03]} 50. Kxg2 {[%clk 0:00:07]}  Kf6 {[%clk 0:00:03]} 51. c8=Q {[%clk 0:00:07]} 1-0


[Site "https://www.chess.com"]

[Event "Titled Tuesday Blitz January 03 Late 2023"]
[White "Paravyan, David"]
[Black "Rozman, Levy"]
[WhiteFideId "4194985"]
[BlackFideId "2039877"]
[WhiteElo "2601"]
[BlackElo "2322"]
[Result "0-1"]
[Round "05"]
[TimeControl "180+2"]
[Date "2023.01.03"]
[WhiteClock "0:00:02"]
[BlackClock "0:00:44"]

1. e4 {[%clk 0:03:00]}  e6 {[%clk 0:03:00]} 2. d4 {[%clk 0:03:00]}  d5 {[%clk 0:03:01]} 3. Nc3 {[%clk 0:03:01]}  dxe4 {[%clk 0:03:02]} 4. Nxe4 {[%clk 0:03:02]}  Nf6 {[%clk 0:03:02]} 5. Nxf6+ {[%clk 0:03:00]}  gxf6 {[%clk 0:03:03]} 6. Bf4 {[%clk 0:02:56]}  Nc6 {[%clk 0:03:03]} 7. Nf3 {[%clk 0:02:52]}  b6 {[%clk 0:03:02]} 8. Bb5 {[%clk 0:02:51]}  Bb7 {[%clk 0:03:01]} 9. d5 {[%clk 0:02:44]}  Qxd5 {[%clk 0:02:51]} 10. Qxd5 {[%clk 0:02:43]}  exd5 {[%clk 0:02:52]} 11. Nd4 {[%clk 0:02:43]}  Kd7 {[%clk 0:02:52]} 12. O-O-O {[%clk 0:01:31]}  a6 {[%clk 0:02:35]} 13. Ba4 {[%clk 0:01:31]}  Bd6 {[%clk 0:02:24]} 14. Bxd6 {[%clk 0:01:16]}  Kxd6 {[%clk 0:02:24]} 15. Nf5+ {[%clk 0:01:15]}  Kc5 {[%clk 0:02:22]} 16. Bxc6 {[%clk 0:01:09]}  Bxc6 {[%clk 0:02:19]} 17. Rd3 {[%clk 0:01:10]}  Bd7 {[%clk 0:01:59]} 18. Rc3+ {[%clk 0:01:08]}  Kb4 {[%clk 0:01:52]} 19. a3+ {[%clk 0:00:53]}  Ka5 {[%clk 0:01:50]} 20. Rd1 {[%clk 0:00:53]}  c6 {[%clk 0:01:46]} 21. Nd4 {[%clk 0:00:45]}  Rac8 {[%clk 0:01:38]} 22. Nb3+ {[%clk 0:00:33]}  Kb5 {[%clk 0:01:35]} 23. Nd4+ {[%clk 0:00:23]}  Ka5 {[%clk 0:01:32]} 24. b4+ {[%clk 0:00:12]}  Ka4 {[%clk 0:01:32]} 25. Kb2 {[%clk 0:00:06]}  Rhe8 {[%clk 0:01:22]} 26. Rf3 {[%clk 0:00:05]}  Bg4 {[%clk 0:01:18]} 27. Rdd3 {[%clk 0:00:02]}  Bxf3 {[%clk 0:01:18]} 28. Rxf3 {[%clk 0:00:03]}  c5 {[%clk 0:01:13]} 29. Nb3 {[%clk 0:00:03]}  Re6 {[%clk 0:01:09]} 30. bxc5 {[%clk 0:00:02]}  bxc5 {[%clk 0:01:10]} 31. Rf5 {[%clk 0:00:02]}  Rd6 {[%clk 0:01:06]} 32. Kc3 {[%clk 0:00:02]}  Kxa3 {[%clk 0:00:56]} 33. Rf4 {[%clk 0:00:02]}  d4+ {[%clk 0:00:55]} 34. Kc4 {[%clk 0:00:03]}  Kb2 {[%clk 0:00:54]} 35. Nd2 {[%clk 0:00:02]}  Kxc2 {[%clk 0:00:52]} 36. Ne4 {[%clk 0:00:03]}  Rb6 {[%clk 0:00:49]} 37. f3 {[%clk 0:00:01]}  Rb4+ {[%clk 0:00:46]} 38. Kd5 {[%clk 0:00:02]}  d3 {[%clk 0:00:47]} 39. Rxf6 {[%clk 0:00:02]}  Rxe4 {[%clk 0:00:44]} 0-1


[Site "https://www.chess.com"]

[Event "Titled Tuesday Blitz January 03 Late 2023"]
[White "Jobava, Baadur"]
[Black "Goryachkina, Aleksandra"]
[WhiteFideId "13601520"]
[BlackFideId "4147103"]
[WhiteElo "2578"]
[BlackElo "2571"]
[Result "1-0"]
[Round "05"]
[TimeControl "180+2"]
[Date "2023.01.03"]
[WhiteClock "0:00:43"]
[BlackClock "0:00:02"]

1. d4 {[%clk 0:02:53]}  Nf6 {[%clk 0:02:57]} 2. Bg5 {[%clk 0:02:52]}  d5 {[%clk 0:02:55]} 3. e3 {[%clk 0:02:53]}  Ne4 {[%clk 0:02:50]} 4. Bf4 {[%clk 0:02:53]}  c5 {[%clk 0:02:47]} 5. f3 {[%clk 0:02:53]}  Nf6 {[%clk 0:02:43]} 6. Nc3 {[%clk 0:02:53]}  a6 {[%clk 0:02:40]} 7. a3 {[%clk 0:02:48]}  e6 {[%clk 0:02:33]} 8. Nge2 {[%clk 0:02:41]}  Nc6 {[%clk 0:02:32]} 9. Qd2 {[%clk 0:02:41]}  b5 {[%clk 0:02:29]} 10. dxc5 {[%clk 0:02:37]}  Bxc5 {[%clk 0:02:28]} 11. Nd4 {[%clk 0:02:38]}  Bb7 {[%clk 0:02:19]} 12. Rd1 {[%clk 0:02:38]}  Qe7 {[%clk 0:02:14]} 13. Bd3 {[%clk 0:02:33]}  h6 {[%clk 0:02:07]} 14. Bg3 {[%clk 0:02:29]}  O-O {[%clk 0:02:04]} 15. Bf2 {[%clk 0:02:27]}  Rfd8 {[%clk 0:01:57]} 16. O-O {[%clk 0:02:27]}  Rac8 {[%clk 0:01:47]} 17. Rfe1 {[%clk 0:02:26]}  b4 {[%clk 0:01:38]} 18. axb4 {[%clk 0:02:23]}  Nxb4 {[%clk 0:01:38]} 19. Bh4 {[%clk 0:02:21]}  Nxd3 {[%clk 0:01:28]} 20. cxd3 {[%clk 0:02:22]}  e5 {[%clk 0:01:05]} 21. Nf5 {[%clk 0:02:21]}  Qe6 {[%clk 0:01:05]} 22. d4 {[%clk 0:02:21]}  Qxf5 {[%clk 0:00:45]} 23. dxc5 {[%clk 0:02:22]}  d4 {[%clk 0:00:45]} 24. e4 {[%clk 0:01:35]}  Qh5 {[%clk 0:00:30]} 25. Bxf6 {[%clk 0:01:35]}  gxf6 {[%clk 0:00:31]} 26. Na4 {[%clk 0:01:34]}  Kh7 {[%clk 0:00:30]} 27. b4 {[%clk 0:01:32]}  Rg8 {[%clk 0:00:29]} 28. Nb6 {[%clk 0:01:32]}  Rcd8 {[%clk 0:00:23]} 29. Qf2 {[%clk 0:01:28]}  f5 {[%clk 0:00:20]} 30. Nc4 {[%clk 0:01:16]}  fxe4 {[%clk 0:00:19]} 31. fxe4 {[%clk 0:01:16]}  Bxe4 {[%clk 0:00:19]} 32. g3 {[%clk 0:01:13]}  Bf3 {[%clk 0:00:10]} 33. Rxe5 {[%clk 0:01:13]}  Bxd1 {[%clk 0:00:09]} 34. Rxh5 {[%clk 0:01:12]}  Bxh5 {[%clk 0:00:09]} 35. Nd6 {[%clk 0:01:12]}  d3 {[%clk 0:00:09]} 36. Qd4 {[%clk 0:01:06]}  Bg6 {[%clk 0:00:08]} 37. c6 {[%clk 0:01:06]}  Rge8 {[%clk 0:00:07]} 38. c7 {[%clk 0:01:06]}  Rc8 {[%clk 0:00:05]} 39. Nxc8 {[%clk 0:01:01]}  Rxc8 {[%clk 0:00:05]} 40. Qd7 {[%clk 0:01:01]}  d2 {[%clk 0:00:05]} 41. Qxd2 {[%clk 0:01:00]}  Rxc7 {[%clk 0:00:05]} 42. Qd6 {[%clk 0:01:00]}  Rb7 {[%clk 0:00:06]} 43. Kf2 {[%clk 0:00:59]}  Rb5 {[%clk 0:00:05]} 44. Qd2 {[%clk 0:00:55]}  Rf5+ {[%clk 0:00:04]} 45. Ke3 {[%clk 0:00:55]}  h5 {[%clk 0:00:05]} 46. Kd4 {[%clk 0:00:52]}  Rf6 {[%clk 0:00:05]} 47. Kc5 {[%clk 0:00:51]}  Re6 {[%clk 0:00:05]} 48. Qg5 {[%clk 0:00:48]}  Kg7 {[%clk 0:00:05]} 49. h3 {[%clk 0:00:48]}  Rf6 {[%clk 0:00:04]} 50. g4 {[%clk 0:00:47]}  hxg4 {[%clk 0:00:03]} 51. Qxg4 {[%clk 0:00:48]}  Rf5+ {[%clk 0:00:02]} 52. Kb6 {[%clk 0:00:48]}  Rf6+ {[%clk 0:00:03]} 53. Ka5 {[%clk 0:00:48]}  Re6 {[%clk 0:00:03]} 54. h4 {[%clk 0:00:48]}  Kh7 {[%clk 0:00:02]} 55. Qg5 {[%clk 0:00:49]}  Kh8 {[%clk 0:00:02]} 56. h5 {[%clk 0:00:48]}  Be4 {[%clk 0:00:02]} 57. Qf4 {[%clk 0:00:43]}  Kh7 {[%clk 0:00:02]} 58. Qxf7+ {[%clk 0:00:43]} 1-0


[Site "https://www.chess.com"]

[Event "Titled Tuesday Blitz January 03 Late 2023"]
[White "Nasuta, Grzegorz"]
[Black "Chigaev, Maksim"]
[WhiteFideId "1141686"]
[BlackFideId "4108116"]
[WhiteElo "2552"]
[BlackElo "2628"]
[Result "1/2-1/2"]
[Round "05"]
[TimeControl "180+2"]
[Date "2023.01.03"]
[WhiteClock "0:00:16"]
[BlackClock "0:00:04"]

1. e4 {[%clk 0:02:57]}  e6 {[%clk 0:03:00]} 2. d4 {[%clk 0:02:56]}  d5 {[%clk 0:03:01]} 3. Nc3 {[%clk 0:02:55]}  Nf6 {[%clk 0:03:02]} 4. Bg5 {[%clk 0:02:55]}  Bb4 {[%clk 0:03:01]} 5. e5 {[%clk 0:02:54]}  h6 {[%clk 0:03:01]} 6. Bd2 {[%clk 0:02:54]}  Bxc3 {[%clk 0:02:59]} 7. bxc3 {[%clk 0:02:54]}  Ne4 {[%clk 0:03:00]} 8. Qg4 {[%clk 0:02:54]}  Kf8 {[%clk 0:02:58]} 9. Bd3 {[%clk 0:02:54]}  Nxd2 {[%clk 0:02:58]} 10. Kxd2 {[%clk 0:02:55]}  c5 {[%clk 0:02:59]} 11. Nf3 {[%clk 0:02:54]}  Nc6 {[%clk 0:03:00]} 12. dxc5 {[%clk 0:02:44]}  Qe7 {[%clk 0:02:54]} 13. Qf4 {[%clk 0:02:44]}  Qxc5 {[%clk 0:02:51]} 14. h4 {[%clk 0:02:43]}  Bd7 {[%clk 0:02:49]} 15. Nd4 {[%clk 0:02:43]}  Rc8 {[%clk 0:02:44]} 16. Rab1 {[%clk 0:02:25]}  b6 {[%clk 0:02:12]} 17. h5 {[%clk 0:02:10]}  Qe7 {[%clk 0:02:06]} 18. g4 {[%clk 0:01:33]}  Qg5 {[%clk 0:02:00]} 19. Qxg5 {[%clk 0:01:33]}  hxg5 {[%clk 0:02:01]} 20. Nxc6 {[%clk 0:01:16]}  Rxc6 {[%clk 0:01:56]} 21. f4 {[%clk 0:01:13]}  gxf4 {[%clk 0:01:49]} 22. Rbf1 {[%clk 0:01:12]}  Ke7 {[%clk 0:01:34]} 23. g5 {[%clk 0:01:07]}  Rc5 {[%clk 0:01:26]} 24. Rxf4 {[%clk 0:01:04]}  Ra5 {[%clk 0:01:26]} 25. h6 {[%clk 0:01:03]}  g6 {[%clk 0:01:21]} 26. Ra1 {[%clk 0:00:39]}  Ra4 {[%clk 0:00:19]} 27. Rxa4 {[%clk 0:00:39]}  Bxa4 {[%clk 0:00:20]} 28. Rf1 {[%clk 0:00:37]}  Rg8 {[%clk 0:00:11]} 29. Rf4 {[%clk 0:00:36]}  Bd7 {[%clk 0:00:09]} 30. c4 {[%clk 0:00:33]}  dxc4 {[%clk 0:00:09]} 31. Rxc4 {[%clk 0:00:32]}  Kd8 {[%clk 0:00:06]} 32. Rd4 {[%clk 0:00:24]}  Ke7 {[%clk 0:00:04]} 33. Rc4 {[%clk 0:00:24]}  Kd8 {[%clk 0:00:04]} 34. Ke3 {[%clk 0:00:24]}  Rh8 {[%clk 0:00:04]} 35. Kd2 {[%clk 0:00:16]}  Rg8 {[%clk 0:00:04]} 1/2-1/2


[Site "https://www.chess.com"]

[Event "Titled Tuesday Blitz January 03 Late 2023"]
[White "Melkumyan, Hrant"]
[Black "Kuznetsov, Felix"]
[WhiteFideId "13302485"]
[BlackFideId "34147990"]
[WhiteElo "2645"]
[BlackElo "2254"]
[Result "0-1"]
[Round "05"]
[TimeControl "180+2"]
[Date "2023.01.03"]
[WhiteClock "0:00:09"]
[BlackClock "0:00:22"]

1. d4 {[%clk 0:02:59]}  Nf6 {[%clk 0:03:00]} 2. c4 {[%clk 0:03:00]}  e6 {[%clk 0:03:00]} 3. Bf4 {[%clk 0:03:00]}  b6 {[%clk 0:02:59]} 4. a3 {[%clk 0:02:59]}  Bb7 {[%clk 0:02:59]} 5. Nc3 {[%clk 0:03:00]}  d5 {[%clk 0:02:58]} 6. e3 {[%clk 0:02:58]}  Be7 {[%clk 0:02:56]} 7. Rc1 {[%clk 0:02:59]}  O-O {[%clk 0:02:56]} 8. Nf3 {[%clk 0:02:59]}  a6 {[%clk 0:02:43]} 9. cxd5 {[%clk 0:02:59]}  exd5 {[%clk 0:02:40]} 10. Bd3 {[%clk 0:02:55]}  Nbd7 {[%clk 0:02:40]} 11. O-O {[%clk 0:02:54]}  c5 {[%clk 0:02:36]} 12. dxc5 {[%clk 0:02:46]}  Nxc5 {[%clk 0:02:33]} 13. Be5 {[%clk 0:02:39]}  Nxd3 {[%clk 0:02:25]} 14. Qxd3 {[%clk 0:02:40]}  Qd7 {[%clk 0:02:25]} 15. Rfd1 {[%clk 0:02:39]}  Rfd8 {[%clk 0:02:24]} 16. h3 {[%clk 0:02:38]}  Rac8 {[%clk 0:02:23]} 17. Rc2 {[%clk 0:02:27]}  Qe6 {[%clk 0:02:21]} 18. Ne2 {[%clk 0:02:17]}  Nd7 {[%clk 0:02:02]} 19. Bc3 {[%clk 0:02:07]}  Nc5 {[%clk 0:01:59]} 20. Qd4 {[%clk 0:02:07]}  Bf6 {[%clk 0:01:50]} 21. Qf4 {[%clk 0:02:07]}  Bxc3 {[%clk 0:01:30]} 22. Rxc3 {[%clk 0:02:05]}  Ne4 {[%clk 0:01:30]} 23. Rxc8 {[%clk 0:01:59]}  Rxc8 {[%clk 0:01:30]} 24. Ned4 {[%clk 0:02:00]}  Qd6 {[%clk 0:01:26]} 25. Qg4 {[%clk 0:01:49]}  g6 {[%clk 0:01:19]} 26. Nf5 {[%clk 0:01:42]}  Qf6 {[%clk 0:01:18]} 27. N5d4 {[%clk 0:01:36]}  h5 {[%clk 0:01:06]} 28. Qd7 {[%clk 0:01:36]}  Nc5 {[%clk 0:01:06]} 29. Qxc8+ {[%clk 0:01:15]}  Bxc8 {[%clk 0:01:07]} 30. Rc1 {[%clk 0:01:16]}  Bd7 {[%clk 0:00:59]} 31. b4 {[%clk 0:01:16]}  Ne6 {[%clk 0:01:00]} 32. Nxe6 {[%clk 0:01:13]}  Qxe6 {[%clk 0:00:57]} 33. Nd4 {[%clk 0:01:14]}  Qd6 {[%clk 0:00:57]} 34. h4 {[%clk 0:01:06]}  a5 {[%clk 0:00:57]} 35. Rb1 {[%clk 0:01:01]}  Bf5 {[%clk 0:00:54]} 36. Rb3 {[%clk 0:00:57]}  Qc7 {[%clk 0:00:47]} 37. bxa5 {[%clk 0:00:53]}  bxa5 {[%clk 0:00:47]} 38. a4 {[%clk 0:00:42]}  Bd7 {[%clk 0:00:45]} 39. Ne2 {[%clk 0:00:18]}  Bxa4 {[%clk 0:00:42]} 40. Rc3 {[%clk 0:00:18]}  Qb6 {[%clk 0:00:40]} 41. Rc8+ {[%clk 0:00:13]}  Kg7 {[%clk 0:00:40]} 42. Nd4 {[%clk 0:00:13]}  Bd7 {[%clk 0:00:40]} 43. Ra8 {[%clk 0:00:13]}  a4 {[%clk 0:00:37]} 44. Kh2 {[%clk 0:00:11]}  Qd6+ {[%clk 0:00:36]} 45. g3 {[%clk 0:00:10]}  a3 {[%clk 0:00:36]} 46. Kg2 {[%clk 0:00:11]}  Bf5 {[%clk 0:00:35]} 47. Ra7 {[%clk 0:00:11]}  Be4+ {[%clk 0:00:33]} 48. f3 {[%clk 0:00:11]}  Bb1 {[%clk 0:00:33]} 49. g4 {[%clk 0:00:09]}  hxg4 {[%clk 0:00:32]} 50. fxg4 {[%clk 0:00:10]}  Be4+ {[%clk 0:00:31]} 51. Kh3 {[%clk 0:00:09]}  Qb4 {[%clk 0:00:27]} 52. g5 {[%clk 0:00:08]}  Bf5+ {[%clk 0:00:24]} 53. Kg2 {[%clk 0:00:08]}  Qd2+ {[%clk 0:00:23]} 54. Kf3 {[%clk 0:00:08]}  Be4+ {[%clk 0:00:24]} 55. Kf4 {[%clk 0:00:09]}  Qf2+ {[%clk 0:00:21]} 56. Ke5 {[%clk 0:00:09]}  Qg3# {[%clk 0:00:22]} 0-1


[Site "https://www.chess.com"]

[Event "Titled Tuesday Blitz January 03 Late 2023"]
[White "Svane, Rasmus"]
[Black "Salimova, Nurgyul"]
[WhiteFideId "4657101"]
[BlackFideId "2915138"]
[WhiteElo "2623"]
[BlackElo "2391"]
[Result "0-1"]
[Round "05"]
[TimeControl "180+2"]
[Date "2023.01.03"]
[WhiteClock "0:00:02"]
[BlackClock "0:00:09"]

1. Nf3 {[%clk 0:02:57]}  d5 {[%clk 0:02:57]} 2. g3 {[%clk 0:02:57]}  Nd7 {[%clk 0:02:53]} 3. d4 {[%clk 0:02:57]}  Nb6 {[%clk 0:02:52]} 4. Nc3 {[%clk 0:02:57]}  Bf5 {[%clk 0:02:42]} 5. Nh4 {[%clk 0:02:55]}  Bg4 {[%clk 0:02:40]} 6. h3 {[%clk 0:02:54]}  Bd7 {[%clk 0:02:31]} 7. Bg2 {[%clk 0:02:43]}  Nf6 {[%clk 0:02:26]} 8. e4 {[%clk 0:02:43]}  dxe4 {[%clk 0:02:25]} 9. Nxe4 {[%clk 0:02:44]}  Nxe4 {[%clk 0:02:10]} 10. Bxe4 {[%clk 0:02:45]}  c6 {[%clk 0:02:10]} 11. Bg2 {[%clk 0:02:32]}  g6 {[%clk 0:02:09]} 12. O-O {[%clk 0:02:32]}  Bg7 {[%clk 0:02:09]} 13. Nf3 {[%clk 0:02:27]}  O-O {[%clk 0:02:08]} 14. Qe2 {[%clk 0:02:27]}  Be6 {[%clk 0:02:02]} 15. Rd1 {[%clk 0:02:25]}  a5 {[%clk 0:01:51]} 16. Bf4 {[%clk 0:02:20]}  a4 {[%clk 0:01:49]} 17. Be5 {[%clk 0:02:03]}  Bc4 {[%clk 0:01:41]} 18. Qe1 {[%clk 0:02:00]}  Bd5 {[%clk 0:01:39]} 19. b3 {[%clk 0:01:57]}  axb3 {[%clk 0:01:34]} 20. axb3 {[%clk 0:01:56]}  Rxa1 {[%clk 0:01:34]} 21. Rxa1 {[%clk 0:01:57]}  Bh6 {[%clk 0:01:17]} 22. Rd1 {[%clk 0:01:09]}  f6 {[%clk 0:01:10]} 23. Bf4 {[%clk 0:01:08]}  Bxf4 {[%clk 0:01:10]} 24. gxf4 {[%clk 0:01:09]}  Qd7 {[%clk 0:01:01]} 25. Qe3 {[%clk 0:00:56]}  Nc8 {[%clk 0:00:46]} 26. c4 {[%clk 0:00:56]}  Be6 {[%clk 0:00:40]} 27. Kh2 {[%clk 0:00:48]}  Bf7 {[%clk 0:00:27]} 28. Re1 {[%clk 0:00:40]}  Re8 {[%clk 0:00:25]} 29. Bf1 {[%clk 0:00:39]}  Nd6 {[%clk 0:00:25]} 30. Bd3 {[%clk 0:00:39]}  Nf5 {[%clk 0:00:24]} 31. Bxf5 {[%clk 0:00:35]}  Qxf5 {[%clk 0:00:25]} 32. Nh4 {[%clk 0:00:36]}  Qh5 {[%clk 0:00:23]} 33. Kg3 {[%clk 0:00:22]}  b5 {[%clk 0:00:22]} 34. d5 {[%clk 0:00:19]}  bxc4 {[%clk 0:00:20]} 35. bxc4 {[%clk 0:00:20]}  cxd5 {[%clk 0:00:20]} 36. c5 {[%clk 0:00:19]}  e5 {[%clk 0:00:19]} 37. fxe5 {[%clk 0:00:20]}  Rxe5 {[%clk 0:00:17]} 38. Qd2 {[%clk 0:00:05]}  Rg5+ {[%clk 0:00:17]} 39. Kh2 {[%clk 0:00:06]}  Qxh4 {[%clk 0:00:17]} 40. c6 {[%clk 0:00:05]}  Rf5 {[%clk 0:00:09]} 41. f4 {[%clk 0:00:02]}  Qxf4+ {[%clk 0:00:08]} 42. Qxf4 {[%clk 0:00:02]}  Rxf4 {[%clk 0:00:09]} 43. Rc1 {[%clk 0:00:02]}  Rc4 {[%clk 0:00:09]} 0-1


[Site "https://www.chess.com"]